lending/lending_fUSD_20241214
["ID","MTS","AMOUNT","RATE_DAILY","PERIOD"]
[345286638,1734141038691,-313.35993744,0.00021143,2]
[345286639,1734141038701,-615.1571244,0.00021147,2]
[345286640,1734141038711,-2366.396,0.00021148,2]
[345286641,1734141038720,-313.35993744,0.00021148,2]
[345286642,1734141038730,-189.87950788,0.00021149,10]
[345286643,1734141038739,-190.40002896,0.00021149,2]
[345286644,1734141038749,-209.11103414,0.00021149,2]
[345286645,1734141038758,-203.24632458,0.00021149,2]
[345286646,1734141038767,-276.21197148,0.00021149,2]
[345286647,1734141038777,-276.21197148,0.00021149,2]
[345286648,1734141038786,-276.21197148,0.00021149,2]
[345286649,1734141038795,-276.21197148,0.00021149,2]
[345286650,1734141038804,-276.21197148,0.00021149,2]
[345286651,1734141038814,-276.21197148,0.00021149,2]
[345286652,1734141038823,-276.21197148,0.00021149,2]
[345286653,1734141038834,-276.21197148,0.00021149,2]
[345286654,1734141038843,-276.21197148,0.00021149,2]
[345286655,1734141038852,-276.21197148,0.00021149,2]
[345286656,1734141038861,-276.21197148,0.00021149,2]
[345286657,1734141038870,-276.21197148,0.00021149,2]
[345286658,1734141038880,-276.21197148,0.00021149,2]
[345286659,1734141038889,-276.21197148,0.00021149,2]
[345286660,1734141038899,-276.21197148,0.00021149,2]
[345286661,1734141038908,-276.21197148,0.00021149,2]
[345286662,1734141038918,-276.21197148,0.00021149,2]
[345286663,1734141038927,-276.21197148,0.00021149,2]
[345286664,1734141038937,-276.21197148,0.00021149,2]
[345286665,1734141038946,-276.21,0.00021149,2]
[345286666,1734141038956,-209.11103413,0.0002115,2]
[345286667,1734141038966,-414.31795722,0.0002115,2]
[345286668,1734141038976,-414.31795722,0.0002115,2]
[345286669,1734141038985,-414.31795722,0.0002115,2]
[345286670,1734141038994,-414.31795722,0.0002115,2]
[345286671,1734141039004,-414.31795722,0.0002115,2]
[345286672,1734141039013,-414.31795722,0.0002115,2]
[345286673,1734141039023,-414.31795722,0.0002115,2]
[345286674,1734141039032,-414.31795722,0.0002115,2]
[345286675,1734141039041,-414.31795722,0.0002115,2]
[345286676,1734141039050,-414.31795722,0.0002115,2]
[345286677,1734141039059,-414.31795722,0.0002115,2]
[345286678,1734141039069,-414.31795722,0.0002115,2]
[345286679,1734141039081,-414.31795722,0.0002115,2]
[345286680,1734141039090,-414.31795722,0.0002115,2]
[345286681,1734141039099,-414.31795722,0.0002115,2]
[345286682,1734141039109,-414.31795722,0.0002115,2]
[345286683,1734141039118,-414.31795722,0.0002115,2]
[345286684,1734141039127,-414.31795722,0.0002115,2]
[345286685,1734141039137,-414.31795722,0.0002115,2]
[345286686,1734141039146,-414.31,0.0002115,2]
[345286687,1734141039155,-200.0,0.00021187,2]
[345286688,1734141039164,-161.54,0.0002119,2]
[345286689,1734141039173,-530.62,0.00021199,3]
[345286690,1734141039183,-500.0,0.00021199,3]
[345286691,1734141039192,-500.0,0.00021199,3]
[345286692,1734141039203,-656.93,0.00021199,3]
[345286693,1734141039218,-500.0,0.00021199,3]
[345286694,1734141039227,-501.23401235,0.00021199,3]
[345286695,1734141039236,-506.81198888,0.00021199,3]
[345286696,1734141039246,-500.0,0.00021199,3]
[345286697,1734141039258,-500.0,0.00021199,3]
[345286698,1734141039267,-828.82,0.00021199,3]
[345286699,1734141039277,-500.0,0.00021199,3]
[345286700,1734141039300,-500.0,0.00021199,3]
[345286701,1734141039317,-500.0,0.00021199,3]
[345286702,1734141039339,-500.0,0.00021199,3]
[345286703,1734141039360,-504.06788298,0.00021199,3]
[345286704,1734141039377,-500.0,0.00021199,3]
[345286705,1734141039395,-500.0,0.00021199,3]
[345286706,1734141039415,-520.53351304,0.00021199,3]
[345286707,1734141039436,-500.0,0.00021199,3]
[345286708,1734141039455,-667.43,0.00021199,3]
[345286709,1734141039473,-500.0,0.00021199,3]
[345286710,1734141039494,-500.0,0.00021199,3]
[345286711,1734141039507,-500.0,0.00021199,3]
[345286712,1734141039526,-500.0,0.00021199,3]
[345286713,1734141039539,-500.0,0.00021199,3]
[345286714,1734141039557,-501.53551389,0.00021199,3]
[345286715,1734141039570,-504.53083361,0.00021199,3]
[345286716,1734141039587,-500.0,0.00021199,3]
[345286717,1734141039606,-500.95862624,0.00021199,3]
[345286718,1734141039621,-500.0,0.00021199,3]
[345286719,1734141039637,-500.0,0.00021199,3]
[345286720,1734141039652,-500.0,0.00021199,3]
[345286721,1734141039667,-500.0,0.00021199,3]
[345286722,1734141039682,-500.0,0.00021199,3]
[345286723,1734141039696,-500.0,0.00021199,3]
[345286724,1734141039712,-587.54,0.00021199,3]
[345286725,1734141039728,-500.0,0.00021199,3]
[345286726,1734141039743,-501.0105977,0.00021199,3]
[345286727,1734141039758,-504.68746323,0.00021199,3]
[345286728,1734141039773,-528.47421814,0.00021199,3]
[345286729,1734141039787,-500.0,0.00021199,3]
[345286730,1734141039801,-500.93615834,0.00021199,3]
[345286731,1734141039816,-500.0,0.00021199,3]
[345286732,1734141039831,-500.0,0.00021199,3]
[345286733,1734141039847,-480.56677277,0.00021199,3]
[345286734,1734141039862,-649.91,0.00021199,3]
[345286735,1734141039878,-500.0,0.00021199,3]
[345286736,1734141039893,-500.0,0.00021199,3]
[345286737,1734141039908,-610.56,0.00021199,3]
[345286738,1734141039923,-506.59479214,0.00021199,3]
[345286739,1734141039938,-500.0,0.00021199,3]
[345286740,1734141039953,-500.0,0.00021199,3]
[345286741,1734141039968,-503.66097658,0.00021199,3]
[345286742,1734141039982,-529.33447171,0.00021199,3]
[345286743,1734141039997,-500.0,0.00021199,3]
[345286744,1734141040013,-500.0,0.00021199,3]
[345286745,1734141040027,-500.0,0.00021199,3]
[345286746,1734141040043,-606.38919417,0.00021199,3]
[345286747,1734141040058,-500.0,0.00021199,3]
[345286748,1734141040074,-502.19305555,0.00021199,3]
[345286749,1734141040098,-500.0,0.00021199,3]
[345286750,1734141040114,-500.0,0.00021199,3]
[345286751,1734141040130,-500.0,0.00021199,3]
[345286752,1734141040144,-501.18702482,0.00021199,3]
[345286753,1734141040161,-500.0,0.00021199,3]
[345286754,1734141040174,-500.0,0.00021199,3]
[345286755,1734141040191,-510.27465239,0.00021199,3]
[345286756,1734141040208,-504.120052,0.00021199,3]
[345286757,1734141040224,-500.0,0.00021199,3]
[345286758,1734141040238,-1642.83,0.00021199,3]
[345286760,1734141040254,-500.0,0.00021199,3]
[345286762,1734141040269,-500.0,0.00021199,3]
[345286763,1734141040284,-1495.87,0.00021199,3]
[345286764,1734141040299,-507.08543625,0.00021199,3]
[345286765,1734141040314,-500.0,0.00021199,3]
[345286766,1734141040333,-500.0,0.00021199,3]
[345286767,1734141040347,-502.12532245,0.00021199,3]
[345286768,1734141040363,-885.53,0.00021199,3]
[345286769,1734141040379,-500.0,0.00021199,3]
[345286770,1734141040395,-500.0,0.00021199,3]
[345286771,1734141040412,-500.0,0.00021199,3]
[345286772,1734141040427,-500.0,0.00021199,3]
[345286773,1734141040443,-500.0,0.00021199,3]
[345286774,1734141040458,-501.71202956,0.00021199,3]
[345286775,1734141040473,-500.0,0.00021199,3]
[345286776,1734141040488,-500.0,0.00021199,3]
[345286777,1734141040498,-500.0,0.00021199,3]
[345286778,1734141040508,-500.0,0.00021199,3]
[345286779,1734141040518,-500.0,0.00021199,3]
[345286780,1734141040729,-500.0,0.00021199,3]
[345286781,1734141040758,-500.0,0.00021199,3]
[345286782,1734141040769,-501.93256624,0.00021199,3]
[345286783,1734141040779,-500.0,0.00021199,3]
[345286784,1734141040789,-500.0,0.00021199,3]
[345286785,1734141040799,-500.0,0.00021199,3]
[345286786,1734141040808,-500.0,0.00021199,3]
[345286787,1734141040817,-500.0,0.00021199,3]
[345286788,1734141040826,-639.48,0.00021199,3]
[345286790,1734141040836,-500.0,0.00021199,3]
[345286792,1734141040846,-500.0,0.00021199,3]
[345286793,1734141040855,-500.0,0.00021199,3]
[345286794,1734141040864,-500.0,0.00021199,3]
[345286795,1734141040874,-500.0,0.00021199,3]
[345286796,1734141040883,-500.0,0.00021199,3]
[345286797,1734141040892,-500.0,0.00021199,3]
[345286798,1734141040903,-500.0,0.00021199,3]
[345286799,1734141040912,-500.0,0.00021199,3]
[345286800,1734141040922,-500.0,0.00021199,3]
[345286801,1734141040932,-500.0,0.00021199,3]
[345286802,1734141040942,-500.0,0.00021199,3]
[345286803,1734141040952,-7797.18,0.00021199,3]
[345286804,1734141040962,-500.0,0.00021199,3]
[345286805,1734141040971,-504.47419958,0.00021199,3]
[345286806,1734141040982,-884.73,0.00021199,3]
[345286807,1734141040992,-786.17,0.00021199,3]
[345286808,1734141041003,-501.74791063,0.00021199,3]
[345286809,1734141041012,-578.26,0.00021199,3]
[345286810,1734141041021,-539.04,0.00021199,3]
[345286811,1734141041030,-500.0,0.00021199,3]
[345286812,1734141041040,-500.0,0.00021199,3]
[345286813,1734141041049,-500.0,0.00021199,3]
[345286814,1734141041059,-606.08,0.00021199,3]
[345286815,1734141041069,-500.0,0.00021199,3]
[345286816,1734141041079,-500.0,0.00021199,3]
[345286817,1734141041089,-500.0,0.00021199,3]
[345286818,1734141041098,-506.13266411,0.00021199,3]
[345286819,1734141041108,-10219.67,0.00021199,3]
[345286820,1734141041118,-500.0,0.00021199,3]
[345286821,1734141041127,-569.36,0.00021199,3]
[345286822,1734141041136,-500.0,0.00021199,3]
[345286823,1734141041145,-1228.61,0.00021199,3]
[345286824,1734141041154,-500.0,0.00021199,3]
[345286825,1734141041164,-500.0,0.00021199,3]
[345286826,1734141041174,-505.2205361,0.00021199,3]
[345286827,1734141041183,-6323.04,0.00021199,3]
[345286828,1734141041193,-500.0,0.00021199,3]
[345286829,1734141041203,-500.0,0.00021199,3]
[345286830,1734141041216,-992.35,0.00021199,3]
[345286831,1734141041225,-500.0,0.00021199,3]
[345286832,1734141041234,-500.0,0.00021199,3]
[345286833,1734141041243,-5921.24,0.00021199,3]
[345286834,1734141041255,-500.0,0.00021199,3]
[345286835,1734141041265,-232.79441077,0.00021199,3]
[345286836,1734141041275,-522.97,0.00021199,3]
[345286837,1734141041286,-500.0,0.00021199,3]
[345286838,1734141041297,-500.0,0.00021199,3]
[345286839,1734141041306,-2039.53,0.00021199,3]
[345286840,1734141041316,-1605.21,0.00021199,3]
[345286841,1734141041325,-500.0,0.00021199,3]
[345286842,1734141041337,-500.0,0.00021199,3]
[345286843,1734141041346,-500.0,0.00021199,3]
[345286844,1734141041355,-500.0,0.00021199,3]
[345286845,1734141041365,-7833.49,0.00021199,3]
[345286846,1734141041374,-500.0,0.00021199,3]
[345286847,1734141041383,-500.0,0.00021199,3]
[345286848,1734141041393,-500.0,0.00021199,3]
[345286849,1734141041402,-500.0,0.00021199,3]
[345286850,1734141041411,-280.44269769,0.00021199,3]
[345286851,1734141041419,-500.0,0.00021199,3]
[345286852,1734141041429,-11722.45,0.00021199,3]
[345286853,1734141041438,-500.0,0.00021199,3]
[345286854,1734141041447,-500.0,0.00021199,3]
[345286855,1734141041455,-500.0,0.00021199,3]
[345286856,1734141041464,-500.0,0.00021199,3]
[345286857,1734141041473,-1332.45,0.00021199,3]
[345286858,1734141041482,-500.0,0.00021199,3]
[345286859,1734141041491,-500.0,0.00021199,3]
[345286860,1734141041500,-500.0,0.00021199,3]
[345286861,1734141041509,-500.0,0.00021199,3]
[345286862,1734141041518,-981.36,0.00021199,3]
[345286863,1734141041527,-553.75,0.00021199,3]
[345286864,1734141041537,-501.0199458,0.00021199,3]
[345286865,1734141041546,-500.0,0.00021199,3]
[345286866,1734141041555,-500.0,0.00021199,3]
[345286867,1734141041564,-500.0,0.00021199,3]
[345286868,1734141041573,-500.0,0.00021199,3]
[345286869,1734141041584,-500.0,0.00021199,3]
[345286870,1734141041593,-500.0,0.00021199,3]
[345286871,1734141041602,-500.0,0.00021199,3]
[345286872,1734141041611,-500.0,0.00021199,3]
[345286873,1734141041621,-500.0,0.00021199,3]
[345286874,1734141041630,-515.13,0.00021199,3]
[345286875,1734141041639,-500.0,0.00021199,3]
[345286876,1734141041649,-500.0,0.00021199,3]
[345286877,1734141041658,-1010.89,0.00021199,3]
[345286878,1734141041667,-500.0,0.00021199,3]
[345286879,1734141041676,-500.0,0.00021199,3]
[345286880,1734141041685,-500.0,0.00021199,3]
[345286881,1734141041694,-500.0,0.00021199,3]
[345286882,1734141041703,-1023.84,0.00021199,3]
[345286883,1734141041712,-3379.75,0.00021199,3]
[345286884,1734141041721,-500.0,0.00021199,3]
[345286885,1734141041730,-500.0,0.00021199,3]
[345286886,1734141041739,-500.0,0.00021199,3]
[345286887,1734141041748,-618570.403228,0.000212,2]
[345286888,1734141041758,-34491.64743655,0.000212,2]
[345286889,1734141041767,-202.4,0.000212,2]
[345286890,1734141041776,-616.0,0.000212,9]
[345286891,1734141041785,-226564.30065339,0.000212,2]
[345286892,1734141041794,-1002.52,0.000212,7]
[345286893,1734141041803,-5800.0,0.000212,2]
[345286894,1734141041812,-150.0,0.00021206,2]
[345286895,1734141041822,-645.4501473,0.00021244,2]
[345286896,1734141041832,-774.0103772,0.00021244,2]
[345286897,1734141041840,-902.570607,0.00021244,2]
[345286898,1734141041850,-1031.1308369,0.00021244,2]
[345286899,1734141041859,-1159.6910668,0.00021244,2]
[345286900,1734141041868,-530.62,0.00021246,3]
[345286901,1734141041878,-500.0,0.00021246,3]
[345286902,1734141041887,-505.50014682,0.00021246,3]
[345286903,1734141041896,-656.93,0.00021246,3]
[345286904,1734141041905,-278.00343312,0.00021246,3]
[345286905,1734141041914,-502.56028385,0.00021246,3]
[345286906,1734141041924,-500.0,0.00021246,3]
[345286907,1734141041933,-828.82,0.00021246,3]
[345286908,1734141041942,-500.0,0.00021246,3]
[345286909,1734141041952,-500.0,0.00021246,3]
[345286910,1734141041960,-500.0,0.00021246,3]
[345286911,1734141041969,-500.0,0.00021246,3]
[345286912,1734141041979,-500.56595605,0.00021246,3]
[345286913,1734141041988,-500.0,0.00021246,3]
[345286914,1734141041997,-500.0,0.00021246,3]
[345286915,1734141042006,-667.43,0.00021246,3]
[345286916,1734141042015,-500.0,0.00021246,3]
[345286917,1734141042024,-502.5179911,0.00021246,3]
[345286918,1734141042033,-500.0,0.00021246,3]
[345286919,1734141042043,-500.0,0.00021246,3]
[345286920,1734141042052,-639.03588611,0.00021246,3]
[345286921,1734141042061,-500.0,0.00021246,3]
[345286922,1734141042070,-500.0,0.00021246,3]
[345286923,1734141042081,-500.0,0.00021246,3]
[345286924,1734141042091,-500.0,0.00021246,3]
[345286925,1734141042100,-500.0,0.00021246,3]
[345286926,1734141042110,-500.0,0.00021246,3]
[345286927,1734141042121,-500.0,0.00021246,3]
[345286928,1734141042131,-587.54,0.00021246,3]
[345286929,1734141042140,-500.0,0.00021246,3]
[345286930,1734141042149,-500.0,0.00021246,3]
[345286931,1734141042158,-500.0,0.00021246,3]
[345286932,1734141042168,-500.0,0.00021246,3]
[345286933,1734141042177,-649.91,0.00021246,3]
[345286934,1734141042186,-500.0,0.00021246,3]
[345286935,1734141042195,-500.0,0.00021246,3]
[345286936,1734141042204,-610.56,0.00021246,3]
[345286937,1734141042217,-562.37989123,0.00021246,3]
[345286938,1734141042226,-500.0,0.00021246,3]
[345286939,1734141042237,-500.0,0.00021246,3]
[345286940,1734141042246,-226.63222746,0.00021246,3]
[345286941,1734141042257,-506.16406217,0.00021246,3]
[345286942,1734141042267,-506.7073513,0.00021246,3]
[345286943,1734141042276,-500.0,0.00021246,3]
[345286944,1734141042286,-500.0,0.00021246,3]
[345286945,1734141042295,-500.0,0.00021246,3]
[345286946,1734141042304,-500.0,0.00021246,3]
[345286947,1734141042313,-506.83352718,0.00021246,3]
[345286948,1734141042322,-550.50776094,0.00021246,3]
[345286949,1734141042334,-1642.83,0.00021246,3]
[345286950,1734141042343,-503.19207229,0.00021246,3]
[345286951,1734141042352,-500.0,0.00021246,3]
[345286952,1734141042361,-1495.87,0.00021246,3]
[345286953,1734141042371,-500.0,0.00021246,3]
[345286954,1734141042380,-500.0,0.00021246,3]
[345286955,1734141042390,-885.53,0.00021246,3]
[345286956,1734141042399,-500.0,0.00021246,3]
[345286957,1734141042408,-500.0,0.00021246,3]
[345286958,1734141042417,-500.0,0.00021246,3]
[345286959,1734141042427,-500.0,0.00021246,3]
[345286960,1734141042436,-500.0,0.00021246,3]
[345286961,1734141042445,-500.0,0.00021246,3]
[345286962,1734141042455,-500.0,0.00021246,3]
[345286963,1734141042464,-500.0,0.00021246,3]
[345286964,1734141042474,-500.0,0.00021246,3]
[345286965,1734141042483,-500.0,0.00021246,3]
[345286966,1734141042494,-500.0,0.00021246,3]
[345286967,1734141042503,-500.0,0.00021246,3]
[345286968,1734141042514,-500.0,0.00021246,3]
[345286969,1734141042524,-503.00419583,0.00021246,3]
[345286970,1734141042534,-156.27173073,0.00021246,3]
[345286971,1734141042543,-500.0,0.00021246,3]
[345286972,1734141042553,-500.0,0.00021246,3]
[345286973,1734141042562,-639.48,0.00021246,3]
[345286974,1734141042571,-500.0,0.00021246,3]
[345286975,1734141042581,-500.0,0.00021246,3]
[345286976,1734141042590,-500.0,0.00021246,3]
[345286977,1734141042599,-500.0,0.00021246,3]
[345286978,1734141042608,-500.0,0.00021246,3]
[345286979,1734141042619,-500.0,0.00021246,3]
[345286980,1734141042627,-240.79405367,0.00021246,3]
[345286981,1734141042636,-500.0,0.00021246,3]
[345286982,1734141042646,-500.0,0.00021246,3]
[345286983,1734141042655,-500.0,0.00021246,3]
[345286984,1734141042665,-500.0,0.00021246,3]
[345286985,1734141042676,-500.0,0.00021246,3]
[345286986,1734141042686,-7797.18,0.00021246,3]
[345286987,1734141042695,-500.0,0.00021246,3]
[345286988,1734141042704,-884.73,0.00021246,3]
[345286989,1734141042713,-786.17,0.00021246,3]
[345286990,1734141042722,-578.26,0.00021246,3]
[345286991,1734141042731,-539.04,0.00021246,3]
[345286992,1734141042740,-500.0,0.00021246,3]
[345286993,1734141042750,-500.0,0.00021246,3]
[345286994,1734141042759,-500.0,0.00021246,3]
[345286995,1734141042768,-606.08,0.00021246,3]
[345286996,1734141042777,-500.0,0.00021246,3]
[345286997,1734141042787,-500.0,0.00021246,3]
[345286998,1734141042796,-500.0,0.00021246,3]
[345286999,1734141042805,-10219.67,0.00021246,3]
[345287000,1734141042815,-500.0,0.00021246,3]
[345287001,1734141042824,-569.36,0.00021246,3]
[345287002,1734141042836,-500.0,0.00021246,3]
[345287003,1734141042846,-1228.61,0.00021246,3]
[345287004,1734141042856,-500.0,0.00021246,3]
[345287005,1734141042865,-500.0,0.00021246,3]
[345287006,1734141042875,-6323.04,0.00021246,3]
[345287007,1734141042884,-500.0,0.00021246,3]
[345287008,1734141042894,-578.8732638,0.00021246,3]
[345287009,1734141042903,-992.35,0.00021246,3]
[345287010,1734141042912,-500.0,0.00021246,3]
[345287011,1734141042922,-500.0,0.00021246,3]
[345287012,1734141042931,-5921.24,0.00021246,3]
[345287013,1734141042940,-505.57732741,0.00021246,3]
[345287014,1734141042949,-522.97,0.00021246,3]
[345287015,1734141042960,-500.0,0.00021246,3]
[345287016,1734141042971,-500.0,0.00021246,3]
[345287017,1734141042980,-2039.53,0.00021246,3]
[345287018,1734141042990,-1605.21,0.00021246,3]
[345287019,1734141043000,-500.0,0.00021246,3]
[345287020,1734141043009,-500.0,0.00021246,3]
[345287021,1734141043018,-500.0,0.00021246,3]
[345287022,1734141043028,-505.02070968,0.00021246,3]
[345287023,1734141043038,-7833.49,0.00021246,3]
[345287024,1734141043049,-500.0,0.00021246,3]
[345287025,1734141043058,-500.0,0.00021246,3]
[345287026,1734141043067,-500.0,0.00021246,3]
[345287027,1734141043077,-500.0,0.00021246,3]
[345287028,1734141043090,-425.48003343,0.00021246,3]
[345287029,1734141043100,-11722.45,0.00021246,3]
[345287030,1734141043110,-500.0,0.00021246,3]
[345287032,1734141043119,-500.0,0.00021246,3]
[345287034,1734141043129,-500.0,0.00021246,3]
[345287049,1734141043192,-500.0,0.00021246,3]
[345287051,1734141043287,-1332.45,0.00021246,3]
[345287053,1734141043298,-500.0,0.00021246,3]
[345287054,1734141043307,-500.0,0.00021246,3]
[345287055,1734141043317,-500.0,0.00021246,3]
[345287056,1734141043327,-500.0,0.00021246,3]
[345287057,1734141043342,-981.36,0.00021246,3]
[345287058,1734141043354,-553.75,0.00021246,3]
[345287059,1734141043364,-500.0,0.00021246,3]
[345287060,1734141043373,-500.0,0.00021246,3]
[345287061,1734141043383,-500.0,0.00021246,3]
[345287062,1734141043392,-500.0,0.00021246,3]
[345287063,1734141043402,-500.0,0.00021246,3]
[345287064,1734141043411,-500.0,0.00021246,3]
[345287065,1734141043422,-500.0,0.00021246,3]
[345287066,1734141043431,-500.0,0.00021246,3]
[345287067,1734141043441,-500.0,0.00021246,3]
[345287068,1734141043451,-500.0,0.00021246,3]
[345287069,1734141043460,-501.86850637,0.00021246,3]
[345287070,1734141043470,-500.0,0.00021246,3]
[345287071,1734141043479,-500.0,0.00021246,3]
[345287072,1734141043488,-515.13,0.00021246,3]
[345287073,1734141043498,-515.13,0.00021246,3]
[345287074,1734141043507,-515.13,0.00021246,3]
[345287075,1734141043518,-500.0,0.00021246,3]
[345287076,1734141043527,-500.0,0.00021246,3]
[345287077,1734141043536,-500.0,0.00021246,3]
[345287078,1734141043547,-1010.89,0.00021246,3]
[345287079,1734141043557,-500.0,0.00021246,3]
[345287080,1734141043567,-500.0,0.00021246,3]
[345287081,1734141043576,-500.0,0.00021246,3]
[345287082,1734141043596,-1023.84,0.00021246,3]
[345287083,1734141043605,-1023.84,0.00021246,3]
[345287084,1734141043615,-1023.84,0.00021246,3]
[345287085,1734141043625,-500.0,0.00021246,3]
[345287086,1734141043635,-3379.75,0.00021246,3]
[345287087,1734141043645,-500.0,0.00021246,3]
[345287088,1734141043655,-500.0,0.00021246,3]
[345287089,1734141043665,-500.0,0.00021246,3]
[345287090,1734141043675,-500.0,0.00021246,3]
[345287091,1734141043684,-500.0,0.00021246,3]
[345287092,1734141043694,-500.0,0.00021247,3]
[345287093,1734141043704,-500.0,0.00021247,3]
[345287094,1734141043714,-500.0,0.00021247,3]
[345287095,1734141043724,-500.0,0.00021247,3]
[345287096,1734141043733,-549.46,0.00021247,3]
[345287097,1734141043742,-180.87841813,0.00021247,3]
[345287098,1734141043751,-504.12083457,0.00021247,3]
[345287099,1734141043760,-500.0,0.00021247,3]
[345287100,1734141043770,-500.0,0.00021247,3]
[345287101,1734141043779,-502.47494504,0.00021247,3]
[345287102,1734141043788,-504.01321091,0.00021247,3]
[345287103,1734141043798,-500.0,0.00021247,3]
[345287104,1734141043808,-617.04,0.00021247,3]
[345287105,1734141043818,-503.16606636,0.00021247,3]
[345287106,1734141043828,-500.0,0.00021247,3]
[345287107,1734141043842,-502.45725301,0.00021247,3]
[345287108,1734141043851,-503.44676086,0.00021247,3]
[345287109,1734141043860,-500.0,0.00021247,3]
[345287110,1734141043870,-500.0,0.00021247,3]
[345287111,1734141043879,-501.75719534,0.00021247,3]
[345287112,1734141043889,-500.0,0.00021247,3]
[345287113,1734141043898,-500.0,0.00021247,3]
[345287114,1734141043907,-500.0,0.00021247,3]
[345287115,1734141043916,-500.0,0.00021247,3]
[345287116,1734141043926,-500.0,0.00021247,3]
[345287117,1734141043935,-1720.48,0.00021247,3]
[345287118,1734141043944,-500.0,0.00021247,3]
[345287119,1734141043953,-500.0,0.00021247,3]
[345287120,1734141043963,-503.24794417,0.00021247,3]
[345287121,1734141043973,-500.0,0.00021247,3]
[345287122,1734141043982,-501.45979479,0.00021247,3]
[345287123,1734141043991,-501.80436312,0.00021247,3]
[345287124,1734141044001,-500.0,0.00021247,3]
[345287125,1734141044011,-500.0,0.00021247,3]
[345287126,1734141044020,-659.3,0.00021247,3]
[345287127,1734141044029,-501.36876334,0.00021247,3]
[345287128,1734141044039,-742.21,0.00021247,3]
[345287129,1734141044048,-610.59352867,0.00021247,3]
[345287130,1734141044057,-501.3529828,0.00021247,3]
[345287131,1734141044066,-550.26961323,0.00021247,3]
[345287132,1734141044076,-500.0,0.00021247,3]
[345287133,1734141044088,-500.77321545,0.00021247,3]
[345287134,1734141044098,-500.0,0.00021247,3]
[345287135,1734141044107,-504.73018186,0.00021247,3]
[345287136,1734141044117,-500.0,0.00021247,3]
[345287137,1734141044127,-503.15002187,0.00021247,3]
[345287138,1734141044136,-500.0,0.00021247,3]
[345287139,1734141044146,-502.31535201,0.00021247,3]
[345287140,1734141044155,-500.0,0.00021247,3]
[345287141,1734141044164,-503.27142091,0.00021247,3]
[345287142,1734141044174,-502.65210098,0.00021247,3]
[345287143,1734141044183,-500.0,0.00021247,3]
[345287144,1734141044193,-502.24103271,0.00021247,3]
[345287145,1734141044202,-500.0,0.00021247,3]
[345287146,1734141044217,-501.90352196,0.00021247,3]
[345287147,1734141044226,-500.0,0.00021247,3]
[345287149,1734141044235,-500.0,0.00021247,3]
[345287150,1734141044245,-503.39717575,0.00021247,3]
[345287151,1734141044256,-500.0,0.00021247,3]
[345287152,1734141044266,-500.0,0.00021247,3]
[345287153,1734141044275,-500.0,0.00021247,3]
[345287154,1734141044286,-501.55776233,0.00021247,3]
[345287155,1734141044295,-625.87,0.00021247,3]
[345287156,1734141044304,-502.18827826,0.00021247,3]
[345287157,1734141044314,-500.0,0.00021247,3]
[345287158,1734141044324,-500.0,0.00021247,3]
[345287159,1734141044335,-500.0,0.00021247,3]
[345287160,1734141044344,-500.0,0.00021247,3]